[Event "FIDE WCCC U10 2018"]
[Site "Santiago de Compostela"]
[Date "2018.11.13"]
[Round "9"]
[White "Cherniaiev, Tykhon"]
[Black "Hladky, Tadeas"]
[Result "1-0"]
[ECO "C67"]
[WhiteElo "1940"]
[BlackElo "1764"]
[Annotator "NA RC"]
[PlyCount "47"]
[EventDate "2018.11.04"]
[EventType "swiss"]
[EventCountry "ESP"]
[SourceTitle "playchess.com"]
[Source "ChessBase"]
[SourceQuality "1"]
[TimeControl "40/5400+30:1800+30"]

{[%evp 8,47,35,32767,32767,32767,40,32767,32767,32767,32767,20,36,23,30,30,29,7,30,22,27,11,48,16,18,18,0,0,67,-40,58,60,78,32767,72,71,32767,32767,83,32767,210,212]} 1. e4 {[%emt 0:00:00]} e5 {[%emt 0:00:00]} 2. Nf3 {[%emt 0:00:00]} Nc6 {[%emt 0:00:00]} 3. Bb5 {[%emt 0:00:00]} Nf6 {[%emt 0:00:00]} 4. O-O {[%emt 0:00:00]} Nxe4 {[%emt 0:00:00]} 5. d4 {[%emt 0:01:08]} Nd6 {[%emt 0:00:00]} 6. Bxc6 {[%emt 0:00:17]} dxc6 {[%emt 0:00:02]} 7. dxe5 {[%emt 0:00:04]} Nf5 {[%emt 0:00:11]} 8. Qxd8+ {[%emt 0:00:07]} Kxd8 {[%emt 0:00:05]} 9. b3 {[%emt 0:09:53]} h6 {[%emt 0:05:59] LiveBook: 40 Games} 10. Rd1+ {[%emt 0:01:44] C67: Spanische Partie (Berliner Verteidigung)} Ke8 {[%emt 0:00:31]} 11. c4 {[%emt 0:02:57]} (11. h3 Be6 12. Bb2 a5 13. c4 Bb4 14. Na3 Bxa3 15. Bxa3 b6 16. g4 Ne7 17. Nd4 c5 18. Nb5 Rc8 19. Na7 Ra8 20. Nb5 Rc8 21. Na7 Ra8 {½-½ (21) Sasikiran,K (2672)-Shankland,S (2722) Batumi 2018}) 11... Be7 {[%emt 0:08:19]} 12. Bb2 {[%emt 0:05:22]} Be6 {[%emt 0:02:20]} 13. Nc3 {[%emt 0:03:05]} Rd8 {[%emt 0:03:25]} 14. Ne2 {[%emt 0:03:42]} Bc5 $146 {[%emt 0:09:15]} ({Vorgänger:} 14... Bc8 15. Nf4 h5 16. Rxd8+ Bxd8 17. Rd1 Rh6 18. h3 {½-½ (43) Kristol,L-Litinskaya,M USSR 1970}) 15. Rxd8+ {[%emt 0:16:48]} Kxd8 {[%emt 0:00:09]} 16. Rd1+ {[%emt 0:01:16]} Kc8 {[%emt 0:05:58]} 17. h3 {[%emt 0:05:07]} Rd8 {[%emt 0:05:16]} (17... a6 $11) 18. Rxd8+ {[%emt 0:02:15]} Kxd8 {[%emt 0:00:16]} 19. Nf4 {[%emt 0:10:55]} Ke8 {[%emt 0:10:05]} 20. g4 {[%emt 0:04:49]} Ne7 {[%emt 0:01:10]} 21. Nd3 {[%emt 0:00:20]} Bb6 {[%emt 0:00:41]} 22. c5 {[%emt 0:00:28]} Ba5 {[%emt 0:00:13]} 23. b4 {[%emt 0:00:35]} Bd5 {[%emt 0:06:26]} (23... Bxb4 $16 24. Nxb4 a5) 24. Nfe1 $18 {[%emt 0:00:59]} 1-0

[Event "FIDE WCCC U10 2018"]
[Site "Santiago de Compostela"]
[Date "2018.11.13"]
[Round "9"]
[White "Habans Aguerrea, Javier"]
[Black "Cnejev, Vladimir-Alexandru"]
[Result "1/2-1/2"]
[ECO "D00"]
[WhiteElo "1892"]
[BlackElo "1810"]
[Annotator "NA RC"]
[PlyCount "149"]
[EventDate "2018.11.04"]
[EventType "swiss"]
[EventCountry "ESP"]
[SourceTitle "playchess.com"]
[Source "ChessBase"]
[SourceQuality "1"]
[TimeControl "40/5400+30:1800+30"]

{[%evp 19,149,0,32767,0,32767,-46,-37,-49,-1,-20,32767,-72,-31,-39,-59,-97,-93,-137,68,0,7,-7,14,-122,-128,-120,-141,-142,-139,-112,-145,-132,-125,-139,-98,32767,-111,-108,32767,32767,32767,-118,-79,32767,32767,32767,32767,32767,-67,32767,0,32767,0,-43,-54,32767,-42,32767,32767,-112,-122,32767,-127,-122,32767,-135,-119,-134,32767,-134,32767,-149,-56,32767,-72,-135,32767,32767,-147,-198,32767,-263,-130,-275,-299,-227,32767,32767,-428,-332,32767,32767,-797,-488,-824,-676,-325,-326,-203,-157,-214,-172,-151,-142,-82,-76,-86,-73,-83,-76,0,-82,-59,-86,-8,-8,-8,32767,32767,32767,0,0,0,-8,0,0,-8,0,0,-8,0,-8]} 1. d4 {[%emt 0:00:00]} d5 {[%emt 0:00:00]} 2. Bf4 {[%emt 0:00:00]} Nf6 {[%emt 0:00:00]} 3. e3 {[%emt 0:00:12]} e6 {[%emt 0:00:00]} 4. Nf3 {[%emt 0:00:08]} c5 {[%emt 0:00:03]} 5. Nbd2 {[%emt 0:00:08]} Nc6 {[%emt 0:00:09]} 6. c3 {[%emt 0:00:10]} Bd6 {[%emt 0:00:07]} 7. Bg3 {[%emt 0:00:10]} O-O {[%emt 0:00:33]} 8. Bd3 {[%emt 0:00:07]} b6 {[%emt 0:00:15]} 9. Qe2 {[%emt 0:00:08] D02: 1 d4 d5 2 Nf3 sidelines, including 2...Nf6 3 g3 and 2...Nf6 3 Bf4} (9. e4 Be7 10. e5 Nh5 11. Nf1 cxd4 12. Nxd4 Nxd4 13. cxd4 g6 14. Ne3 f5 15. exf6 Bxf6 16. Be2 Nxg3 17. hxg3 {½-½ (37) Nakamura,H (2787)-Svidler,P (2760) Moscow 2018}) 9... Bb7 {[%emt 0:00:06]} 10. Rd1 {[%emt 0:00:12]} a5 {[%emt 0:09:51]} 11. e4 Be7 {[%emt 0:00:31]} 12. e5 {[%emt 0:05:28]} (12. O-O $11) 12... Nh5 {[%emt 0:00:22]} 13. a3 {[%emt 0:11:28] [#]} g6 $146 {[%emt 0:08:27]} ({Predecessor:} 13... h6 14. Nf1 Qc8 15. Ne3 Ba6 16. O-O Bxd3 17. Rxd3 {0-1 (71) Paehtz,E (2472)-Kosteniuk,A (2555) Asnieres sur Seine 2018}) 14. Qe3 {[%emt 0:04:32]} Ba6 {[%emt 0:03:21]} 15. Bb1 {[%emt 0:01:14]} (15. Bxa6 $11 Rxa6 16. O-O) 15... cxd4 {[%emt 0:01:33]} 16. cxd4 {[%emt 0:01:22]} a4 {[%emt 0:00:55]} ({Of course not} 16... Nxg3 $6 17. hxg3 f5 18. exf6 $14 (18. Qh6 Rf7 $11)) 17. Bf4 {[%emt 0:01:27]} f6 {[%emt 0:05:30]} 18. Bh6 {[%emt 0:01:25] [#]} ({White should try} 18. g3 $1 $15) 18... Re8 $2 {[%emt 0:01:05]} (18... fxe5 $1 $17 {[%mdl 512]} 19. Bxf8 (19. Nxe5 Nxe5 20. Qxe5 Bd6 $19) (19. dxe5 Bc5) 19... Qxf8) 19. Bd3 {[%emt 0:07:19]} Bxd3 {[%emt 0:10:02]} 20. Qxd3 {[%emt 0:00:01]} fxe5 {[%emt 0:03:43]} 21. Nxe5 {[%emt 0:01:23]} (21. dxe5 $11 Qb8 22. Qc3) 21... Nxe5 {[%emt 0:00:32]} 22. dxe5 {[%emt 0:00:02]} Bg5 {[%emt 0:00:12]} 23. Bxg5 {[%emt 0:00:58]} Qxg5 {[%emt 0:00:03]} 24. g3 {[%emt 0:10:41]} Qxe5+ {[%emt 0:00:49]} 25. Qe3 {[%emt 0:00:19]} Qxe3+ {[%emt 0:02:06]} 26. fxe3 {[%emt 0:00:03]} Rac8 {[%emt 0:03:23]} 27. Nb1 {[%emt 0:01:56]} Rc2 {[%emt 0:00:56]} 28. Rd2 {[%emt 0:00:01]} Rc1+ {[%emt 0:04:18]} 29. Rd1 {[%emt 0:00:30]} Rc4 {[%emt 0:00:29]} 30. Nc3 {[%emt 0:03:20]} Rec8 {[%emt 0:00:40]} 31. Ke2 {[%emt 0:01:54]} Nf6 {[%emt 0:02:30]} 32. Rd4 {[%emt 0:01:52]} Rxd4 {[%emt 0:01:41]} 33. exd4 {[%emt 0:00:02]} Rc4 {[%emt 0:00:20]} 34. Rf1 {[%emt 0:02:23]} Kf7 {[%emt 0:01:06]} ({Black should try} 34... Ne8 $15) 35. Kd3 {[%emt 0:00:53]} Ke7 {[%emt 0:00:59]} 36. h3 {[%emt 0:01:46]} (36. Re1 $5 {[%cal Rc3d5]} Kd6 37. Rf1 $11) 36... Ne8 {[%emt 0:05:55]} 37. Re1 {[%emt 0:04:05]} Kf7 {[%emt 0:15:29]} 38. Rf1+ {[%emt 0:01:51]} Kg7 {[%emt 0:01:00]} 39. Rf2 {[%emt 0:08:56]} (39. Nb5 $15) 39... Nd6 {[%emt 0:02:30]} 40. Re2 {[%emt 0:00:00]} Kf6 {[%emt 0:00:00]} 41. g4 {[%emt 0:01:00]} b5 {[%emt 0:03:27]} 42. Rf2+ {[%emt 0:00:43]} Ke7 {[%emt 0:00:22]} 43. Re2 {[%emt 0:00:08]} Kd7 {[%emt 0:00:18]} 44. Rf2 {[%emt 0:01:08]} Rc8 {[%emt 0:00:39]} 45. h4 {[%emt 0:01:34]} Kc6 {[%emt 0:10:44]} (45... Rh8 $17 46. Rf3 h5) 46. Rf6 {[%emt 0:00:53]} Re8 {[%emt 0:00:14]} 47. Kc2 {[%emt 0:01:11]} Re7 {[%emt 0:00:47]} 48. Rf8 {[%emt 0:00:31] [#]} Rf7 $1 {[%emt 0:00:27]} 49. Rxf7 {[%emt 0:00:54]} Nxf7 {[%emt 0:03:32]} 50. Nd1 {[%emt 0:00:22] [#]} (50. Ne2 $142) 50... Nd6 {[%emt 0:07:14]} (50... b4 $1 $19 {[%mdl 512]} 51. Kd3 (51. axb4 Kb5) 51... Kb5) 51. Kd3 {[%emt 0:00:39]} (51. Nf2 $142) 51... Nc4 {[%emt 0:02:49]} 52. Kc3 {[%emt 0:00:41]} e5 {[%emt 0:00:31]} 53. Kd3 {[%emt 0:01:09] [#]} e4+ {[%emt 0:00:39]} (53... b4 $142 $1 {[%mdl 512]} 54. Kc2 (54. axb4 Nxb2+) 54... bxa3 55. bxa3 exd4) 54. Kc2 {[%emt 0:00:45]} Kd6 {[%emt 0:00:39]} 55. b3 {[%emt 0:00:28]} Nxa3+ {[%emt 0:06:14]} 56. Kb2 {[%emt 0:00:02]} b4 {[%emt 0:00:08]} 57. Ne3 {[%emt 0:01:21]} axb3 {[%emt 0:00:37]} 58. Kxb3 {[%emt 0:00:02]} Nc4 {[%emt 0:00:19]} (58... Nb5 $142 59. Nc2 Nc3 60. Nxb4 Nd1) 59. Ng2 {[%emt 0:00:07]} Nd2+ {[%emt 0:13:16]} 60. Kxb4 {[%emt 0:00:17]} Nf3 {[%emt 0:00:02]} 61. Kc3 {[%emt 0:03:57]} h5 $2 {[%emt 0:00:29]} (61... Kc6 $19 62. h5 gxh5 63. gxh5 Kd6) 62. gxh5 {[%emt 0:00:14]} gxh5 {[%emt 0:00:06]} 63. Nf4 {[%emt 0:00:31]} Nxh4 {[%emt 0:00:12]} 64. Nxh5 {[%emt 0:00:10]} Ng2 {[%emt 0:00:30]} ({Black should play} 64... Nf5 $17 65. Nf4 Kc6) 65. Nf6 {[%emt 0:00:31]} (65. Kd2 $11) 65... Ke6 {[%emt 0:00:13]} 66. Ne8 {[%emt 0:00:08]} Kf5 {[%emt 0:00:24]} ({Black should try} 66... Ne3 $17 67. Nc7+ Kd7) 67. Nc7 $1 {[%emt 0:00:23]} Nf4 {[%emt 0:00:12]} 68. Kd2 {[%emt 0:00:11]} Kf6 {[%emt 0:01:24]} 69. Ke3 {[%emt 0:00:07]} Kf5 {[%emt 0:00:18]} 70. Kf2 {[%emt 0:01:22]} Nd3+ {[%emt 0:00:16]} 71. Ke3 {[%emt 0:00:07]} Nb4 {[%emt 0:00:29]} 72. Nb5 {[%emt 0:00:37]} Na6 {[%emt 0:00:56]} 73. Nd6+ $11 {[%emt 0:00:19]} Ke6 {[%emt 0:00:04] [#]} 74. Nxe4 $1 {[%emt 0:00:09]} dxe4 {[%emt 0:00:05]} 75. Kxe4 {[%emt 0:00:08] Ke5+} 1/2-1/2

[Event "FIDE WCCC U10 2018"]
[Site "Santiago de Compostela"]
[Date "2018.11.13"]
[Round "9"]
[White "Seemann, Jakub"]
[Black "Wilson, Ronen"]
[Result "1-0"]
[ECO "B94"]
[WhiteElo "1869"]
[BlackElo "1761"]
[Annotator "NA RC"]
[PlyCount "85"]
[EventDate "2018.11.04"]
[EventType "swiss"]
[EventCountry "ESP"]
[SourceTitle "playchess.com"]
[Source "ChessBase"]
[SourceQuality "1"]
[TimeControl "40/5400+30:1800+30"]

{[%evp 17,85,39,32767,32767,58,32767,52,26,44,44,64,58,39,53,54,52,57,25,26,40,32,43,52,37,47,44,40,32767,32767,32767,19,32767,32767,0,32767,32767,32767,32767,32767,69,32767,32767,95,84,89,32767,110,32767,93,9,24,32767,32767,32767,32767,32767,32767,73,60,32767,32767,32767,29979,89,29982,29984,29984,32767,29986,29987]} 1. e4 {[%emt 0:00:00]} c5 {[%emt 0:00:00]} 2. Nf3 {[%emt 0:00:00]} d6 {[%emt 0:00:13]} 3. d4 {[%emt 0:00:00]} cxd4 {[%emt 0:00:15]} 4. Nxd4 {[%emt 0:00:01]} Nf6 {[%emt 0:00:27]} 5. Nc3 {[%emt 0:00:06]} a6 {[%emt 0:00:33]} 6. Bg5 {[%emt 0:00:09]} Nbd7 {[%emt 0:00:30]} 7. f4 {[%emt 0:00:27]} Qc7 {[%emt 0:00:31]} 8. Qf3 {[%emt 0:00:09] B94: Sicilian Najdorf: 6 Bg5 Nbd7} h6 {[%emt 0:01:11]} 9. Bxf6 {[%emt 0:00:09]} Nxf6 {[%emt 0:00:22]} 10. f5 {[%emt 0:00:07]} e5 {[%emt 0:09:33] LiveBook: 11 Games} 11. fxe6 {[%emt 0:02:13]} fxe6 {[%emt 0:01:12]} 12. O-O-O {[%emt 0:01:15]} Be7 {[%emt 0:08:04]} 13. g3 {[%emt 0:02:57]} e5 $146 {[%emt 0:07:48]} ({Predecessor:} 13... Bd7 14. Bh3 Qc4 15. e5 dxe5 16. Qxb7 exd4 17. Qxa8+ {1-0 (43) Guliyev,N (2549)-Moussard,J (2426) Paris 2011}) 14. Nf5 {[%emt 0:03:00]} Bxf5 {[%emt 0:00:36]} 15. Qxf5 {[%emt 0:03:01]} O-O {[%emt 0:01:31]} 16. Qe6+ {[%emt 0:04:04]} Kh8 {[%emt 0:01:23]} 17. Nd5 {[%emt 0:03:18]} Nxd5 {[%emt 0:01:56]} 18. Qxd5 {[%emt 0:05:53]} Rf2 {[%emt 0:04:45]} 19. Bd3 {[%emt 0:05:28]} Rc8 {[%emt 0:02:45]} 20. Qb3 {[%emt 0:01:59]} b5 {[%emt 0:08:02]} 21. Rdf1 {[%emt 0:06:30]} Rcf8 {[%emt 0:13:41]} 22. Rxf2 {[%emt 0:12:15]} Rxf2 {[%emt 0:00:22]} 23. a4 {[%emt 0:00:39]} Qa5 {[%emt 0:02:25]} 24. Kb1 {[%emt 0:01:17]} bxa4 {[%emt 0:04:26]} 25. Qb7 {[%emt 0:03:22]} Bf8 {[%emt 0:10:18]} 26. Qxa6 {[%emt 0:01:03]} Qb4 {[%emt 0:02:05]} 27. Qc4 {[%emt 0:07:47]} Qa5 {[%emt 0:00:57]} 28. Rf1 {[%emt 0:01:23]} Rxf1+ {[%emt 0:01:23]} 29. Bxf1 {[%emt 0:00:09]} d5 {[%emt 0:12:37]} 30. exd5 {[%emt 0:00:16]} a3 {[%emt 0:00:29]} 31. bxa3 {[%emt 0:05:16]} Qxa3 {[%emt 0:01:59]} 32. Bd3 {[%emt 0:01:00]} Qa7 {[%emt 0:02:56]} 33. Qb5 {[%emt 0:15:04]} (33. Qe4 $16 {[%csl Gd3][%cal Re4h7]} Qb6+ 34. Kc1 Qg1+ 35. Kd2 Qf2+ 36. Kd1 Qg1+ 37. Ke2 Qxh2+ 38. Kf3 Qh1+ 39. Kg4 Qxe4+ 40. Bxe4) 33... Qg1+ {[%emt 0:00:39]} 34. Kb2 {[%emt 0:00:17]} Qd4+ {[%emt 0:00:24]} 35. c3 {[%emt 0:00:27]} Qf2+ {[%emt 0:00:13]} 36. Kb3 {[%emt 0:00:12]} Qxh2 {[%emt 0:00:49]} 37. Qe8 $2 {[%emt 0:01:28]} (37. Qb8 $18 {[%cal Rb8f8]} Qf2 38. d6 Qf7+ 39. Kb2) 37... Qf2 {[%emt 0:00:15]} 38. Qg6 {[%emt 0:07:07]} Kg8 {[%emt 0:00:15]} 39. Bf5 {[%emt 0:02:59]} Qf3 $2 {[%emt 0:01:02] [#]} (39... Qe2 $14) 40. Qe6+ $1 {[%emt 0:00:00]} Kh8 {[%emt 0:00:00] [#]} 41. Qf7 $1 {[%emt 0:00:27]} Qd1+ {[%emt 0:06:48]} 42. Bc2 {[%emt 0:00:44]} Qxc2+ {[%emt 0:02:38]} 43. Kxc2 {[%emt 0:00:06]} 1-0

[Event "FIDE WCCC U10 2018"]
[Site "Santiago de Compostela"]
[Date "2018.11.13"]
[Round "9"]
[White "Kolesov, Gordey"]
[Black "Orujov, Farid"]
[Result "1-0"]
[ECO "B20"]
[WhiteElo "1823"]
[BlackElo "1643"]
[Annotator "NA RC"]
[PlyCount "67"]
[EventDate "2018.11.04"]
[EventType "swiss"]
[EventCountry "ESP"]
[SourceTitle "playchess.com"]
[Source "ChessBase"]
[SourceQuality "1"]
[TimeControl "40/5400+30:1800+30"]

{[%evp 10,55,43,41,32767,37,32767,47,139,93,85,84,68,73,164,179,190,155,165,168,240,234,219,264,32767,345,450,32767,32767,132,32767,21,7,32767,32767,32767,32767,241,32767,32767,32767,32767,389,412,395,32767,32767,1351]} 1. e4 {[%emt 0:00:00]} c5 {[%emt 0:00:00]} 2. Ne2 {[%emt 0:00:00]} d6 {[%emt 0:00:00]} 3. g3 {[%emt 0:00:00]} g6 {[%emt 0:03:21]} 4. Bg2 Bg7 {[%emt 0:00:34]} 5. c3 {[%emt 0:00:27]} Nc6 {[%emt 0:04:57] LiveBook: 160 Games} 6. d4 {[%emt 0:00:41]} cxd4 {[%emt 0:01:30]} 7. cxd4 {[%emt 0:00:12]} e5 {[%emt 0:00:59] B20: Sicilian: Unusual White 2nd moves} (7... h5 8. h3 Qb6 9. Nbc3 Nf6 10. Be3 Qd8 11. Qd2 Bd7 12. f4 O-O 13. O-O e6 14. e5 Ne8 15. Ne4 {1-0 (41) Quparadze,G (2503)-Duzhakov,I (2448) Batumi 2018}) 8. Be3 {[%emt 0:01:07]} Qb6 {[%emt 0:12:20]} (8... exd4 $14 9. Nxd4 Nf6) 9. d5 $146 {[%emt 0:02:47]} ({Predecessor:} 9. Nbc3 exd4 10. Nd5 Qa5+ 11. b4 Nxb4 12. Bd2 {0-1 (27) Quarracino,S-Rey Besada,F (2169) Vicente Lopez 2004}) 9... Nd4 {[%emt 0:02:17]} 10. Nxd4 {[%emt 0:07:22]} exd4 {[%emt 0:00:30]} 11. Bf4 {[%emt 0:01:00]} Qxb2 {[%emt 0:30:52]} (11... Nf6 $14) 12. Nd2 {[%emt 0:01:08]} Be5 {[%emt 0:09:58]} 13. Bxe5 {[%emt 0:02:36]} dxe5 {[%emt 0:00:16]} 14. O-O {[%emt 0:01:05]} Qb4 {[%emt 0:07:00]} (14... b5 {keeps fighting.} 15. f4 exf4 16. Rxf4 Nh6) 15. Rb1 {[%emt 0:01:14]} Qe7 {[%emt 0:01:27]} 16. f4 {[%emt 0:03:30]} f6 {[%emt 0:01:18]} 17. Nc4 {[%emt 0:06:11]} b5 {[%emt 0:02:24]} 18. Na5 {[%emt 0:02:03]} Bd7 {[%emt 0:00:31]} 19. Rc1 {[%emt 0:00:56]} Nh6 {[%emt 0:10:20]} 20. Nc6 $2 {[%emt 0:09:03]} (20. Rc7 $18) 20... Qd6 $1 {[%emt 0:05:34]} 21. Qd2 {[%emt 0:03:51]} Ng4 {[%emt 0:01:13]} 22. fxe5 {[%emt 0:04:56]} fxe5 {[%emt 0:00:08]} 23. Bh3 {[%emt 0:00:36]} Rf8 {[%emt 0:03:28]} 24. Bxg4 {[%emt 0:01:05]} Bxg4 {[%emt 0:00:06]} 25. Qg5 {[%emt 0:00:55]} Be2 {[%emt 0:00:48]} 26. Rxf8+ {[%emt 0:01:29]} Kxf8 {[%emt 0:00:05]} 27. Nxe5 {[%emt 0:01:33]} Kg7 {[%emt 0:00:59] [#]} 28. Rc6 $18 {[%emt 0:01:10]} Qf8 {[%emt 0:00:33]} 29. Rc7+ {[%emt 0:01:43]} Kg8 {[%emt 0:00:12]} 30. Nf7 {[%emt 0:01:25]} Qxf7 {[%emt 0:00:47]} 31. Rxf7 {[%emt 0:00:09]} Kxf7 {[%emt 0:00:06]} 32. d6 {[%emt 0:00:23]} h6 {[%emt 0:00:27]} 33. Qe7+ {[%emt 0:00:14]} Kg8 {[%emt 0:00:35]} 34. d7 {[%emt 0:00:15]} 1-0

[Event "FIDE WCCC U10 2018"]
[Site "Santiago de Compostela"]
[Date "2018.11.13"]
[Round "9"]
[White "Dang, Anh Minh"]
[Black "Xiao, Tong"]
[Result "1/2-1/2"]
[ECO "A62"]
[WhiteElo "1817"]
[BlackElo "2022"]
[Annotator "NA RC"]
[PlyCount "73"]
[EventDate "2018.11.04"]
[EventType "swiss"]
[EventCountry "ESP"]
[SourceTitle "playchess.com"]
[Source "ChessBase"]
[SourceQuality "1"]
[TimeControl "40/5400+30:1800+30"]

{[%evp 14,73,24,32767,32767,32767,7,8,32767,32767,47,27,20,18,42,27,28,16,12,20,29,17,45,0,-16,-8,-9,-70,32767,-25,32767,32767,50,32767,84,18,21,-148,32767,-135,32767,32767,32767,32767,-31,32767,32767,-39,-18,-113,32767,32767,32767,32767,32767,32767,-86,-110,-127,-110,32767,-137]} 1. d4 {[%emt 0:00:00]} Nf6 {[%emt 0:00:00]} 2. c4 {[%emt 0:00:00]} e6 {[%emt 0:00:00]} 3. g3 {[%emt 0:00:00]} c5 {[%emt 0:00:00]} 4. d5 {[%emt 0:00:03]} exd5 {[%emt 0:00:16]} 5. cxd5 {[%emt 0:00:09]} d6 {[%emt 0:00:10]} 6. Nc3 {[%emt 0:00:08]} g6 {[%emt 0:00:09]} 7. Bg2 {[%emt 0:00:15]} Bg7 {[%emt 0:00:16]} 8. Nf3 {[%emt 0:00:11]} O-O {[%emt 0:00:09]} 9. O-O {[%emt 0:00:13]} Re8 {[%emt 0:00:15]} 10. Bf4 {[%emt 0:00:12]} a6 {[%emt 0:01:17]} 11. a4 {[%emt 0:00:25]} Nh5 {[%emt 0:01:48]} 12. Bg5 {[%emt 0:01:38] A62: Modern Benoni: Fianchetto Variation without early ...Nbd7} Qc7 {[%emt 0:03:17]} 13. Qd2 {[%emt 0:07:07]} Nd7 {[%emt 0:03:26]} 14. Rfe1 {[%emt 0:17:31]} (14. Rfc1 b6 15. Rab1 Ndf6 16. Nh4 Ng4 17. h3 Ne5 18. b3 f6 19. Be3 f5 {0-1 (45) Jumabayev,R (2611)-Zhigalko,S (2671) Doha 2016}) 14... Rb8 {[%emt 0:10:33] LiveBook: 3 Games} 15. e4 {[%emt 0:05:40]} b5 {[%emt 0:03:28]} 16. axb5 {[%emt 0:02:12]} axb5 {[%emt 0:01:17]} 17. Bf1 $146 {[%emt 0:02:24]} ({Predecessor:} 17. Rf1 c4 {½-½ (17) Rhode,H (2425)-Novikovas,A (2390) ICCF corr 2002}) 17... c4 {[%emt 0:03:04]} 18. Nd4 {[%emt 0:00:57]} Ne5 {[%emt 0:05:32]} 19. Be2 {[%emt 0:08:47]} b4 {[%emt 0:04:22]} 20. Ncb5 {[%emt 0:04:51]} Qb6 {[%emt 0:10:08]} 21. Be3 {[%emt 0:02:18]} Nf6 {[%emt 0:10:45]} 22. f3 {[%emt 0:05:20]} Ba6 {[%emt 0:12:14]} (22... Bd7 $11 23. Nf5 (23. Na7 Nxd5 24. Bf2 c3 $17) 23... c3) 23. Nf5 {[%emt 0:10:32]} Qxb5 {[%emt 0:00:46]} 24. Nxd6 {[%emt 0:00:09]} c3 {[%emt 0:01:02]} 25. bxc3 $2 {[%emt 0:00:57] [#]} (25. Qd1 $1 $14 {was forced to keep a grip.} Nxf3+ 26. Bxf3) 25... Qxe2 $1 {[%emt 0:01:29]} 26. Rxe2 {[%emt 0:06:28]} Nxf3+ {[%emt 0:00:08]} 27. Kg2 {[%emt 0:00:25]} Nxd2 {[%emt 0:00:04]} 28. Rxa6 {[%emt 0:00:10]} Red8 {[%emt 0:05:07]} (28... Ndxe4 $17 29. Nxe8 Rxe8) 29. Bxd2 {[%emt 0:00:46]} b3 {[%emt 0:00:13]} 30. Bc1 {[%emt 0:01:18]} Nd7 {[%emt 0:00:30]} 31. Bb2 {[%emt 0:00:46]} ({White has to play} 31. Nc4 $1 $15) 31... Nc5 {[%emt 0:00:37]} 32. Rc6 {[%emt 0:00:06]} Na4 {[%emt 0:01:05]} 33. Kf3 {[%emt 0:11:36]} Bxc3 {[%emt 0:02:42]} 34. Nc4 {[%emt 0:12:02]} Nxb2 {[%emt 0:03:07]} 35. Nxb2 {[%emt 0:00:01]} Be5 {[%emt 0:00:28]} 36. Ke3 {[%emt 0:00:46]} Rb4 {[%emt 0:04:20]} 37. Rc4 $17 {[%emt 0:01:22]} 1/2-1/2